Cogmind - Beta 14 @@@ ROGUE MODE // 2024.12.09 @ 11:35:54 Player: Sirracha Result: Destroyed by KN-3E6(R) with Subdweller Machine Gun Performance ------------- Evolutions (0) 0 Regions Visited (3) 600 Robots Destroyed (26) 130 Value Destroyed (496) 496 Prototype IDs (1) 20 Alien Tech Used (0) 0 Bonus (0) 0 TOTAL SCORE: 1246 Bonus ------- None Cogmind --------- Core Integrity 0/250 Matter 248/300 Energy 60/100 System Corruption 0% Temperature Cool (0) Movement Treading (240) Ox1 Location -10/Subcaves Parts ------- > --- POWER (1) -------- (None) > --- PROPULSION (2) --- Light Treads > --- UTILITY (2) ------ Large Storage Unit Light Armor Plating > --- WEAPON (2) ------- Heavy Assault Rifle > --- INVENTORY (15) --- Light Ion Engine Light Ion Engine Light Ion Engine Light Treads Heat Sink Weight Redist. System Sensor Array Experimental Sensor Array Seismic Detector Light Armor Plating EM Pulse Gun Light Assault Rifle Heavy Assault Rifle Rocket Launcher Peak State ------------ > --- POWER ------------ Light Ion Engine > --- PROPULSION ------- Light Treads Light Treads > --- UTILITY ---------- Large Storage Unit Experimental Sensor Array > --- WEAPON ----------- Heavy Assault Rifle Heavy Assault Rifle > --- INVENTORY -------- Light Ion Engine Light Ion Engine Light Treads Light Treads Heat Sink Weight Redist. System Sensor Array Seismic Detector Seismic Detector Light Armor Plating Light Armor Plating EM Pulse Gun Light Assault Rifle Heavy Assault Rifle Rocket Launcher [Rating: 18] Favorites ----------- Power Light Ion Engine Engine Light Ion Engine Power Core Light Nuclear Core Propulsion Light Treads Treads Light Treads Utility Seismic Detector Device Seismic Detector Storage Large Storage Unit Protection Light Armor Plating Weapon Heavy Assault Rifle Energy Gun EM Pulse Gun Ballistic Gun Heavy Assault Rifle Build | -11 -10 -10 -10 ------- Run | Yrd Mat Min Sub Slots Evolved . | . . . . Power . | . . . . Propulsion . | . . . . Utility . | . . . . Weapon . | . . . . Parts Attached 24 | 7 9 6 2 Power 3 | 1 2 . . Engine 2 | 1 1 . . Core 1 | . 1 . . Reactor . | . . . . Propulsion 6 | 2 2 1 1 Treads 6 | 2 2 1 1 Leg . | . . . . Wheel . | . . . . Hover . | . . . . Flight . | . . . . Utility 8 | 2 2 3 1 Device 4 | 1 . 3 . Storage 3 | 1 2 . . Processor . | . . . . Hackware . | . . . . Protection 1 | . . . 1 Artifact . | . . . . Weapon 7 | 2 3 2 . Energy Gun 1 | 1 . . . Energy Cannon . | . . . . Ballistic Gun 6 | 1 3 2 . Ballistic Cannon . | . . . . Launcher . | . . . . Special Weapon . | . . . . Impact Weapon . | . . . . Slashing Weapon . | . . . . Piercing Weapon . | . . . . Special Melee Weapon . | . . . . Unidentified Prototypes 1 | . . 1 . Parts Lost 6 | . 2 . 4 Power 2 | . 1 . 1 Propulsion 2 | . . . 2 Utility . | . . . . Weapon 2 | . 1 . 1 Highest Loss Streak 4 | . 2 . 4 To Critical Strikes 1 | . 1 . . Average Slot Usage (%) 98 | . 99 100 66 Engine 8 | . 5 14 4 Core 4 | . 7 . . Treads 27 | . 28 28 18 Device 13 | . 14 14 9 Storage 14 | . 14 14 14 Ballistic Gun 27 | . 27 28 14 Peak Build Rating 18 | 7 12 18 11 Average Rating 10 | 5 10 10 8 On Entrance 7 | . 7 10 11 Naked Turns . | . . . . Heaviest Build 32 | 14 32 30 30 Greatest Support 40 | 40 40 40 40 Greatest Overweight (x) 1 | . . . 1 Average Overweight (x) . | . . . . Largest Inventory Capacity 15 | 8 15 15 15 Average Capacity 13 | 6 12 15 15 Most Carried 15 | 5 12 15 15 Average Carried 11 | 2 9 14 15 Final Capacity 15 | 8 15 15 15 Final Carried 15 | 5 12 15 14 Class Distribution -------------------- 100% | Mutant Dominant Class ---------------- Mutant | -10/Materials Mutant | -10/Mines Mutant | -10/Subcaves Resources | -11 -10 -10 -10 ----------- Run | Yrd Mat Min Sub Matter Collected 763 | 218 459 84 2 Remotely . | . . . . Salvage Created 851 | 10 600 241 . Parts 66 | 3 48 15 . Haulers Intercepted 2 | . 2 . . Recyclers Shooed . | . . . . Parts Field Recycled . | . . . . Retrieved Matter . | . . . . Parts Self-Destructed . | . . . . Prevented . | . . . . Kills | -11 -10 -10 -10 ------- Run | Yrd Mat Min Sub Combat Hostiles Destroyed 16 | . 14 2 . Guns 16 | . 14 2 . Classes Destroyed 7 | 1 5 1 . Worker 1 | . 1 . . Tunneler 3 | 1 1 1 . Hauler 2 | . 2 . . Recycler 2 | . . 2 . Watcher 2 | . 2 . . Swarmer 6 | . 6 . . Grunt 10 | . 8 2 . Best Kill Streak 7 | 1 7 2 . Combat Bots Only 6 | . 6 1 . Max Kills in Single Turn 2 | 1 2 1 . Gunslinging 1 | . 1 . . Exploded . | . . . . Melee . | . . . . Uniques/NPCs Destroyed . | . . . . Combat | -11 -10 -10 -10 -------- Run | Yrd Mat Min Sub Hostile Shots Fired 133 | . 102 4 27 Missed 41 | . 33 2 6 Damage Taken 1234 | . 646 33 555 Core 255 | . 116 33 106 Absorbed by Shields . | . . . . Core Remaining (%) 100 | 100 . . . Volleys Fired 73 | 3 54 9 7 Largest 2 | 1 2 2 2 Hottest 46 | 20 46 46 46 Shots Fired 137 | 3 108 18 8 Gun 137 | 3 108 18 8 Cannon . | . . . . Launcher . | . . . . Special . | . . . . Kinetic 137 | 3 108 18 8 Thermal . | . . . . Explosive . | . . . . Electromagnetic . | . . . . Robot Hit Streak 9 | 3 9 7 2 Robot Miss Streak 3 | . 3 2 2 Penetration Max . | . . . . Secondary Targets 1 | . 1 . . Max Gunslinging Chain 1 | . 1 . . Shots Hit Robots 83 | 3 64 12 4 Core Hits 40 | 1 28 9 2 Critical Kills . | . . . . Critical Parts Destroyed 1 | . . 1 . Critical Strikes 1 | . . 1 . Destroy 1 | . . 1 . Melee Attacks . | . . . . Impact . | . . . . Slashing . | . . . . Piercing . | . . . . Sneak Attacks . | . . . . Combat Hostiles . | . . . . Follow-up Attacks . | . . . . Damage Inflicted 1263 | 29 991 166 77 Guns 1263 | 29 991 166 77 Cannons . | . . . . Explosions . | . . . . Melee . | . . . . Ramming . | . . . . Kinetic 1263 | 29 991 166 77 Thermal . | . . . . Explosive . | . . . . Electromagnetic . | . . . . Impact . | . . . . Slashing . | . . . . Piercing . | . . . . Highest Corruption . | . . . . Average Corruption . | . . . . Corruption Purged . | . . . . Corruption Blocked . | . . . . Overload Shots . | . . . . Overflow Damage . | . . . . Projectiles . | . . . . Explosions . | . . . . Melee . | . . . . Knockbacks . | . . . . Impact . | . . . . Kinetic . | . . . . Secondary . | . . . . Self-Inflicted Damage . | . . . . Shots . | . . . . Rammed . | . . . . Targets Rammed . | . . . . Kicked . | . . . . Crushed . | . . . . Highest Temperature 10 | . 10 4 . Average Temperature 3 | . 3 4 . Received Heat Transfer 183 | . 165 18 . Siege Activations . | . . . . Robots Corrupted . | . . . . Combat Hostiles . | . . . . Parts Fried . | . . . . Impact Corruptions . | . . . . Robots Melted . | . . . . Combat Hostiles . | . . . . Parts Melted . | . . . . Heat Transferred . | . . . . Parts Sabotaged . | . . . . Parts Stolen . | . . . . Parts Stripped . | . . . . Power Chain Reactions . | . . . . Alert | -11 -10 -10 -10 ------- Run | Yrd Mat Min Sub Peak Influence 165 | 5 165 65 . Initial 20 | . 3 20 . Average 44 | 3 47 43 . Maximum Alert Level . | . . . . Low Security (%) 100 | 100 100 100 . Level 1 . | . . . . Level 2 . | . . . . Level 3 . | . . . . Level 4 . | . . . . Level 5 . | . . . . High Security . | . . . . Max Security . | . . . . Squads Dispatched 3 | . 3 . . Investigation . | . . . . Extermination . | . . . . Reinforcement 3 | . 3 . . Assault . | . . . . Garrison . | . . . . Intercept . | . . . . Searches Triggered . | . . . . Construction Impeded . | . . . . Haulers Reinforced . | . . . . Active Scanning Responses . | . . . . Cargo Convoy Interrupts . | . . . . Stealth | -11 -10 -10 -10 --------- Run | Yrd Mat Min Sub Distress Signals 3 | . 3 . . Communications Jammed . | . . . . Distress Signals . | . . . . Times Spotted 31 | . 23 4 4 Peak Tracking Total 6 | . 6 2 3 Tactical Retreats 2 | . . 2 . Traps | -11 -10 -10 -10 ------- Run | Yrd Mat Min Sub Traps Triggered . | . . . . Indirectly . | . . . . Trap Hack Attempts . | . . . . Triggered . | . . . . Disarmed 6 | . 6 . . Reprogrammed . | . . . . Reused . | . . . . Traps Extracted . | . . . . Installed . | . . . . Triggered . | . . . . Machines | -11 -10 -10 -10 ---------- Run | Yrd Mat Min Sub Machines Disabled . | . . . . Max in Single Turn . | . . . . Machines Repaired . | . . . . Machines Dismantled . | . . . . Machines Sabotaged . | . . . . Overloaded Fab Kills . | . . . . Hacking | -11 -10 -10 -10 --------- Run | Yrd Mat Min Sub Machines Accessed 8 | . 7 1 . Terminals 6 | . 5 1 . Fabricators . | . . . . Repair Stations . | . . . . Recycling Units 2 | . 2 . . Scanalyzers . | . . . . Garrison Access . | . . . . Total Hacks 25 | . 23 2 . Successful 17 | . 15 2 . Failed 8 | . 8 . . Catastrophic . | . . . . Database Lockouts . | . . . . Manual 15 | . 13 2 . Terminals 22 | . 20 2 . Fabricators . | . . . . Repair Stations . | . . . . Recycling Units 3 | . 3 . . Scanalyzers . | . . . . Garrison Access . | . . . . Terminal Hacks 6 | . 6 . . Record 2 | . 2 . . Locate Traps 2 | . 2 . . Disarm Traps 1 | . 1 . . Zone Layout 1 | . 1 . . Fabricator Hacks . | . . . . Repair Station Hacks . | . . . . Recycling Unit Hacks 1 | . 1 . . Retrieve Components 1 | . 1 . . Scanalyzer . | . . . . Garrison Access Hacks . | . . . . Unauthorized Hacks 10 | . 8 2 . Terminals 10 | . 8 2 . Botnet 6 | . 5 1 . Skim 4 | . 3 1 . Fabricators . | . . . . Repair Stations . | . . . . Recycling Units . | . . . . Scanalyzers . | . . . . Garrison Access . | . . . . Data Cores Recovered . | . . . . Used . | . . . . Hacking Detections 7 | . 7 . . Full Trace Events . | . . . . Feedback Events . | . . . . Feedback Blocked . | . . . . Robot Schematics Acquired . | . . . . Robots Built . | . . . . Authchips . | . . . . Time . | . . . . Total Robot Build Rating . | . . . . Part Schematics Acquired . | . . . . Parts Built . | . . . . Authchips . | . . . . Time . | . . . . Total Part Build Rating . | . . . . Parts Repaired . | . . . . Time . | . . . . Parts Recycled . | . . . . Recycled Matter . | . . . . Retrieved Matter . | . . . . Retrieved Components 9 | . 9 . . Parts Scanalyzed . | . . . . Part Schematics Acquired . | . . . . Parts Damaged . | . . . . Bothacking | -11 -10 -10 -10 ------------ Run | Yrd Mat Min Sub Used RIF Installer . | . . . . Robots Hacked . | . . . . Non-combat . | . . . . Combat . | . . . . Robot Hacks Applied . | . . . . Relay Couplers Released . | . . . . Fabnet Peak Effective % . | . . . . Robots Rewired . | . . . . Allies Hacked . | . . . . Hacks Repelled . | . . . . Allies | -11 -10 -10 -10 -------- Run | Yrd Mat Min Sub Total Allies . | . . . . Largest Group . | . . . . Highest-Rated Group . | . . . . Highest-Rated Ally . | . . . . Total Orders . | . . . . Ally Attacks . | . . . . Total Damage . | . . . . Kills . | . . . . Allies Corrupted . | . . . . Allies Melted . | . . . . Intel | -11 -10 -10 -10 ------- Run | Yrd Mat Min Sub Robot Analysis Total . | . . . . Derelict Logs Recovered 1 | . . 1 . Drone Launches . | . . . . Drone Recoveries . | . . . . Exploration | -11 -10 -10 -10 ------------- Run | Yrd Mat Min Sub Turns Passed 2259 | 116 1395 721 27 Spaces Moved 1185 | 59 714 407 5 Core 2 | 2 . . . Treads 1183 | 57 714 407 5 Legs . | . . . . Wheels . | . . . . Hover . | . . . . Flight . | . . . . Fastest Speed 50 | 50 160 160 160 Average Speed 159 | 156 160 160 192 Slowest Speed 240 | 160 160 160 240 Overloaded Moves . | . . . . Propulsion Burnouts . | . . . . Robots Hopped . | . . . . Cave-ins Triggered . | . . . . Exploration Rate (%) 42 | 6 86 77 2 Regions Visited 3 Branch Regions 2 Pre-discovered Areas . | . . . . Known Exits Taken . | . . . . Unknown Exits Taken 3 | 1 1 1 . Scrap Searched 1 | . . 1 . Spaces Dug . | . . . . Terrain Destroyed . | . . . . Melee . | . . . . Projectile . | . . . . AOE . | . . . . Terrain Rammed . | . . . . Walls Destroyed . | . . . . Machines Disabled . | . . . . Actions | -11 -10 -10 -10 --------- Run | Yrd Mat Min Sub Total 1412 | 80 860 458 14 Wait 90 | . 61 29 . Move 1182 | 58 713 406 5 Hop . | . . . . Pick Up 32 | 12 15 5 . Fast Attach . | . . . . Attach 10 | 7 2 . 1 Detach . | . . . . Swap 14 | . 7 6 1 Drop 11 | . 8 3 . Fire 73 | 3 54 9 7 Melee . | . . . . Ram . | . . . . Kick . | . . . . Crush . | . . . . Escape Stasis . | . . . . Rewire . | . . . . Trap . | . . . . Miscellaneous . | . . . . Route ------- -11/Scrapyard -10/Materials (discovered 5 exits: [*Mat x3] / *Min x2) -10/Mines (discovered 2 exits: [*Mat] / [*Sub]) -10/Subcaves (discovered 1 exit: Rec) History --------- Turn | Location | Event 17 | -11/Scrapyard | Discovered new exit (range 15) 117 | -11/Scrapyard | Entered Materials 135 | -10/Materials | Discovered new exit (range 16) 315 | -10/Materials | Build established: Mutant 480 | -10/Materials | Discovered new exit (range 15) 598 | -10/Materials | Discovered new exit (range 13) 638 | -10/Materials | Discovered new exit (range 12) 1005 | -10/Materials | Discovered new exit (range 8) 1512 | -10/Materials | Entered Mines 1548 | -10/Mines | Received a Rocket Launcher from a helpful Derelict 1678 | -10/Mines | Found DCF Scrap (14 items) 1831 | -10/Mines | Discovered new exit (range 15) 1946 | -10/Mines | Core integrity fell below 50% 2076 | -10/Mines | Found a damaged Exp. Sensor Array with a note attached 2080 | -10/Mines | Found Prototype Device 2081 | -10/Mines | Identified Exp. Sensor Array 2226 | -10/Mines | Discovered new exit (range 5) 2233 | -10/Mines | Entered Subcaves 2234 | -10/Subcaves | Identified exit to Recycling 2243 | -10/Subcaves | Ambushed by Subdweller buried in earth 2244 | -10/Subcaves | Core integrity fell below 20% 2260 | -10/Subcaves | Destroyed by KN-3E6(R) with Subdweller Machine Gun Last Messages --------------- 02240_ HV Slug penetrates CT-524(R). 02240_ CT-524(R) suffers critical hit (Destroy). 02240_ CT-524(R) knocked back. 02243_ HV Slug penetrates CT-524(R). 02243_ CT-524(R) suffers critical hit (Destroy). 02243_ CT-524(R) destroyed. 02243_ HV Slug penetrates Twisted Machinery. 02244_ KN-3E6(R): "ARGHSUB!" 02246_ Subatomizers dissect the Sub. Optics. 02246_ DV-O5Z(R) suffers critical hit (Destroy). 02249_ Lgt. Ion Engine destroyed. 02250_ Lgt. Treads destroyed. 02252_ HV Slug penetrates DV-O5Z(R). 02252_ HV Slug penetrates Wall. 02252_ DV-O5Z(R) destroyed. 02255_ KN-3E6(R) suffers critical hit (Destroy). 02255_ KN-3E6(R) knocked back. 02256_ Acquired 2 matter. 02258_ HV Slug penetrates KN-3E6(R). 02258_ Lgt. Treads destroyed. Map ----- +----------------------------------------------------+ | ?????????????????????????????????????????????????? | | ?????????????????????????????????????????????????? | | ?????????????????????????????????????????????????? | | ?????????????????????????????????????????????????? | | ?????????????????????????????????????????????????? | | ?????????????????????????????????????????????????? | | ?????????????????????????????????????????????????? | | ?????????????????????????????????????????????????? | | ?????????????????????????????????????????????????? | | ?????????????????????????????????????????????????? | | ?????????????????????????????????????????????????? | | ?????????????????????????????????????????????????? | | ?????????????????????????????????????????????????? | | ?????????????????????????" #????????????????????? | | ???????????????????????"""" #????????????????????? | | ??????????????????????? " #????????????????????? | | ???????????????????????" ##???????????????????? | | ???????????????????????"" ##??????????????????? | | ???????????????????????? ???????????????????? | | ???????????????????????? " ;#???????????????????? | | ????????????????????????" " #???????????????????? | | ????????????????????????#; #???????????????????? | | ???????????????????????##; #???????????????????? | | ??????????????????????## & ##???????????????????? | | ??????????????????????#%!% ##??????????????????? | | ?????????????????????##=%@ ;#??????????????????? | | ?????????????????### #;; ##?????????????????? | | ?????????????????# ##????????????????? | | ?????????????????# #????????????????? | | ?????????????????# h! ; #????????????????? | | ?????????????????# ;###????????????????? | | ??????????????#";; ;#??????????????????? | | ?????????????#"; #??????????????????? | | ?????????????#; #?????????????????? | | ?????????????#; R ### #?????????????????? | | ?????????????##; R ###??##?????????????????? | | ??????????????#; % #????????????????????????? | | ??????????????## ?????????????????????????? | | ???????????????## ?????????????????????????? | | ????????????????########?????????????????????????? | | ?????????????????????????????????????????????????? | | ?????????????????????????????????????????????????? | | ?????????????????????????????????????????????????? | | ?????????????????????????????????????????????????? | | ?????????????????????????????????????????????????? | | ?????????????????????????????????????????????????? | | ?????????????????????????????????????????????????? | | ?????????????????????????????????????????????????? | | ?????????????????????????????????????????????????? | | ?????????????????????????????????????????????????? | +----------------------------------------------------+ Best States ------------- Heat Dissipation 25 Energy Generation 14 Energy Capacity 250 Matter Stores 300 Matter Capacity 300 Sight Range 16 Robot Scan Range 14 Terrain Scan Density 10 Armor Coverage 150 Evasion (%) 40 Recoil Reduction 2 Item Schematics ----------------- None Robot Schematics ------------------ None Fabricated ------------ Nothing Alien Tech Used ----------------- None Achievements -------------- Quantum Hacking True Hacker Challenges ------------ None Game ------ Seed IntegratedAssaultPropulsion Manual? 0 Play Time 00:26:25 Cumulative 6.6 hours Start 2024.12.09 @ 11:10:08 End 2024.12.09 @ 11:35:54 Sessions 1 Manual Loads 0 Difficulty Rogue Special Mode None Game No. 14 Rogue 9 Adventurer 5 Explorer 0 Win Type - Total 0 Types 0/0/0/0/0/0/0/0/0 Lore% 4 Gallery% 10 Achievement% 12 Wizard Run 0 Options --------- Layout 1 ASCII 0 Keyboard 0 Movement Mouse Keybinds 0 Fullscreen 1 Font 24/Smallcaps Map View 50x35 Zoom Use 0% Tactical HUD 1 Map Filters NONE Filters NONE Steam 1 RUN: 20450e06-28e8-4a33-b20d-ea5909ace560